[Event "*** Titled Tuesday Blitz"]
[Site "Chess.com"]
[Date "2019.02.05"]
[Round "3"]
[White "Thefirstchess"]
[Black "chesstatour"]
[Result "1-0"]
[WhiteElo "2046"]
[BlackElo "2007"]
[TimeControl "180+2"]
[EndTime "13:36:59 PST"]
[Termination "Thefirstchess won on time"]

1. c4 {[%clk 0:03:01.9]} 1... f5 {[%clk 0:02:58.9]} 2. Nc3 {[%clk 0:02:51.5]}
2... Nf6 {[%clk 0:02:36.9]} 3. g3 {[%clk 0:02:50]} 3... g6 {[%clk 0:02:37.3]} 4.
Bg2 {[%clk 0:02:50.9]} 4... Bg7 {[%clk 0:02:38.9]} 5. d3 {[%clk 0:02:49.1]} 5...
d6 {[%clk 0:02:36]} 6. e4 {[%clk 0:02:43.8]} 6... O-O {[%clk 0:02:26.2]} 7. Nge2
{[%clk 0:02:36.1]} 7... c6 {[%clk 0:02:24.8]} 8. O-O {[%clk 0:02:26.7]} 8... Kh8
{[%clk 0:02:21.4]} 9. b3 {[%clk 0:02:18.3]} 9... e5 {[%clk 0:02:04.3]} 10. f4
{[%clk 0:02:15]} 10... Be6 {[%clk 0:01:44.8]} 11. h3 {[%clk 0:02:06.2]} 11...
Na6 {[%clk 0:01:29.4]} 12. Be3 {[%clk 0:01:55]} 12... Qd7 {[%clk 0:01:15.5]} 13.
Kh2 {[%clk 0:01:55]} 13... Rae8 {[%clk 0:01:07.7]} 14. Rc1 {[%clk 0:01:52.8]}
14... Nc7 {[%clk 0:00:50.9]} 15. Bxa7 {[%clk 0:01:45.7]} 15... exf4 {[%clk
0:00:31.2]} 16. Nxf4 {[%clk 0:01:42.4]} 16... fxe4 {[%clk 0:00:25]} 17. dxe4
{[%clk 0:01:26]} 17... c5 {[%clk 0:00:15.9]} 18. Bb6 {[%clk 0:01:02.8]} 18...
Na8 {[%clk 0:00:12.6]} 19. Nxe6 {[%clk 0:00:55.4]} 19... Rxe6 {[%clk 0:00:11]}
20. Nd5 {[%clk 0:00:52.5]} 20... Nxd5 {[%clk 0:00:08.6]} 21. Rxf8+ {[%clk
0:00:48]} 21... Bxf8 {[%clk 0:00:09.1]} 22. cxd5 {[%clk 0:00:43.2]} 22... Re7
{[%clk 0:00:08.3]} 23. Ba5 {[%clk 0:00:42.4]} 23... Bg7 {[%clk 0:00:08.2]} 24.
Bc3 {[%clk 0:00:40.9]} 24... Qe8 {[%clk 0:00:06.3]} 25. Qd2 {[%clk 0:00:38.3]}
25... Nc7 {[%clk 0:00:06.4]} 26. Qb2 {[%clk 0:00:37.3]} 26... Bxc3 {[%clk
0:00:06.5]} 27. Qxc3+ {[%clk 0:00:39]} 27... Re5 {[%clk 0:00:07.6]} 28. Rf1
{[%clk 0:00:39.4]} 28... Qe7 {[%clk 0:00:07.2]} 29. Rf4 {[%clk 0:00:35.6]} 29...
Kg7 {[%clk 0:00:07.7]} 30. a3 {[%clk 0:00:30]} 30... Nb5 {[%clk 0:00:08.6]} 31.
Qb2 {[%clk 0:00:30.8]} 31... Nd4 {[%clk 0:00:09]} 32. b4 {[%clk 0:00:30.6]}
32... b6 {[%clk 0:00:09.3]} 33. Rf2 {[%clk 0:00:29.3]} 33... h6 {[%clk
0:00:08.1]} 34. Qb1 {[%clk 0:00:22.6]} 34... Rg5 {[%clk 0:00:08.4]} 35. Rb2
{[%clk 0:00:20.8]} 35... Qe5 {[%clk 0:00:09.3]} 36. Qe1 {[%clk 0:00:19.7]} 36...
h5 {[%clk 0:00:09.1]} 37. h4 {[%clk 0:00:20.9]} 37... Rg4 {[%clk 0:00:09.4]} 38.
Kh3 {[%clk 0:00:18.3]} 38... Qf6 {[%clk 0:00:08.3]} 39. bxc5 {[%clk 0:00:14.5]}
39... bxc5 {[%clk 0:00:07.6]} 40. Rb7+ {[%clk 0:00:14]} 40... Kg8 {[%clk
0:00:07.4]} 41. Qa5 {[%clk 0:00:06]} 41... Rxg3+ {[%clk 0:00:04.2]} 42. Kxg3
{[%clk 0:00:03.3]} 42... Qe5+ {[%clk 0:00:03.3]} 43. Kh3 {[%clk 0:00:04.8]} 1-0

[Event "*** Titled Tuesday Blitz"]
[Site "Chess.com"]
[Date "2019.02.05"]
[Round "3"]
[White "Incognito_Knight"]
[Black "VerdeNotte"]
[Result "1/2-1/2"]
[WhiteElo "2624"]
[BlackElo "2843"]
[TimeControl "180+2"]
[EndTime "13:37:04 PST"]
[Termination "Game drawn - insufficient material"]

1. e4 {[%clk 0:03:01.9]} 1... c5 {[%clk 0:02:59.2]} 2. Nf3 {[%clk 0:03:02.6]}
2... d6 {[%clk 0:03:00.6]} 3. d4 {[%clk 0:03:03.7]} 3... cxd4 {[%clk 0:03:02.5]}
4. Nxd4 {[%clk 0:03:05.2]} 4... Nf6 {[%clk 0:03:03.8]} 5. f3 {[%clk 0:03:04.8]}
5... Nc6 {[%clk 0:03:03.7]} 6. c4 {[%clk 0:03:05.3]} 6... e6 {[%clk 0:03:04.7]}
7. Nc3 {[%clk 0:03:06.5]} 7... d5 {[%clk 0:03:05.3]} 8. cxd5 {[%clk 0:03:01.6]}
8... exd5 {[%clk 0:03:06.4]} 9. exd5 {[%clk 0:02:37.1]} 9... Nxd5 {[%clk
0:03:07.1]} 10. Nxc6 {[%clk 0:02:34.2]} 10... bxc6 {[%clk 0:03:07.8]} 11. Nxd5
{[%clk 0:02:34.6]} 11... Qxd5 {[%clk 0:03:01.4]} 12. Qxd5 {[%clk 0:02:34.6]}
12... cxd5 {[%clk 0:03:03.3]} 13. Bb5+ {[%clk 0:02:22.2]} 13... Bd7 {[%clk
0:03:04.2]} 14. Bxd7+ {[%clk 0:02:23.1]} 14... Kxd7 {[%clk 0:03:06.1]} 15. Be3
{[%clk 0:02:21]} 15... Bb4+ {[%clk 0:02:55.3]} 16. Kf2 {[%clk 0:02:15.8]} 16...
Rhc8 {[%clk 0:02:53.4]} 17. Rhc1 {[%clk 0:02:14.9]} 17... a6 {[%clk 0:02:54.4]}
18. Ke2 {[%clk 0:02:07.8]} 18... Bd6 {[%clk 0:02:53]} 19. f4 {[%clk 0:01:29]}
19... Rab8 {[%clk 0:02:52.2]} 20. b3 {[%clk 0:01:28.2]} 20... Re8 {[%clk
0:02:49.7]} 21. Kd3 {[%clk 0:01:23.8]} 21... Rb4 {[%clk 0:02:42.3]} 22. g3
{[%clk 0:01:14.7]} 22... Rbe4 {[%clk 0:02:42.2]} 23. Bd4 {[%clk 0:00:58.6]}
23... g6 {[%clk 0:02:43]} 24. Rc2 {[%clk 0:00:51.6]} 24... h5 {[%clk 0:02:41]}
25. Rd1 {[%clk 0:00:51.5]} 25... h4 {[%clk 0:02:41.3]} 26. Rf1 {[%clk
0:00:40.6]} 26... Re1 {[%clk 0:02:28.8]} 27. Rxe1 {[%clk 0:00:37]} 27... Rxe1
{[%clk 0:02:30.7]} 28. Re2 {[%clk 0:00:34.5]} 28... Rd1+ {[%clk 0:02:25.1]} 29.
Rd2 {[%clk 0:00:35.5]} 29... Rxd2+ {[%clk 0:02:18.1]} 30. Kxd2 {[%clk
0:00:37.4]} 30... g5 {[%clk 0:02:18.4]} 31. fxg5 {[%clk 0:00:14.1]} 31... h3
{[%clk 0:02:12.6]} 32. Bf2 {[%clk 0:00:05.8]} 32... Ke6 {[%clk 0:02:13.4]} 33.
Ke2 {[%clk 0:00:07.2]} 33... Kf5 {[%clk 0:02:14.1]} 34. Kf3 {[%clk 0:00:08.5]}
34... Kxg5 {[%clk 0:02:15.2]} 35. Be1 {[%clk 0:00:08.4]} 35... Kf5 {[%clk
0:02:01.5]} 36. a4 {[%clk 0:00:08.1]} 36... d4 {[%clk 0:02:00.2]} 37. b4 {[%clk
0:00:06.9]} 37... d3 {[%clk 0:01:58.6]} 38. b5 {[%clk 0:00:07.5]} 38... axb5
{[%clk 0:01:59.3]} 39. axb5 {[%clk 0:00:09.4]} 39... Bc5 {[%clk 0:02:00.7]} 40.
Bd2 {[%clk 0:00:06]} 40... Ke5 {[%clk 0:01:57.3]} 41. Bf4+ {[%clk 0:00:04]}
41... Kd5 {[%clk 0:01:49.1]} 42. Be3 {[%clk 0:00:05.2]} 42... Bd6 {[%clk
0:01:37.2]} 43. Kg4 {[%clk 0:00:05.8]} 43... Kc4 {[%clk 0:01:33.8]} 44. Kxh3
{[%clk 0:00:06.7]} 44... Bc5 {[%clk 0:01:26.9]} 45. Bd2 {[%clk 0:00:07.5]} 45...
Kxb5 {[%clk 0:01:25.5]} 46. Kg4 {[%clk 0:00:08.5]} 46... Bb4 {[%clk 0:01:26.9]}
47. Be3 {[%clk 0:00:08.9]} 47... d2 {[%clk 0:01:26.4]} 48. Bxd2 {[%clk
0:00:09.8]} 48... Bxd2 {[%clk 0:01:28.3]} 49. Kf5 {[%clk 0:00:11.3]} 49... Bc3
{[%clk 0:01:29.5]} 50. g4 {[%clk 0:00:12.7]} 50... Kc6 {[%clk 0:01:30.1]} 51. g5
{[%clk 0:00:13.4]} 51... Bh8 {[%clk 0:01:19.8]} 52. g6 {[%clk 0:00:14.1]} 52...
f6 {[%clk 0:01:04]} 53. Ke6 {[%clk 0:00:15.1]} 53... f5 {[%clk 0:01:05.3]} 54.
Kxf5 {[%clk 0:00:16]} 54... Kd7 {[%clk 0:01:06.8]} 55. h4 {[%clk 0:00:16.8]}
55... Ke7 {[%clk 0:01:08.3]} 56. h5 {[%clk 0:00:17.9]} 56... Bg7 {[%clk
0:01:09.3]} 57. Kg5 {[%clk 0:00:19.3]} 57... Kf8 {[%clk 0:01:09.4]} 58. h6
{[%clk 0:00:20.3]} 58... Bb2 {[%clk 0:01:10.6]} 59. g7+ {[%clk 0:00:20.3]} 59...
Kf7 {[%clk 0:01:10.6]} 60. Kf5 {[%clk 0:00:19.7]} 60... Bc1 {[%clk 0:01:10.5]}
61. h7 {[%clk 0:00:19.2]} 61... Kxg7 {[%clk 0:01:11.3]} 62. h8=Q+ {[%clk
0:00:20.2]} 62... Kxh8 {[%clk 0:01:12.2]} 1/2-1/2

[Event "*** Titled Tuesday Blitz"]
[Site "Chess.com"]
[Date "2019.02.05"]
[Round "3"]
[White "Caterpiller35"]
[Black "jeetjain"]
[Result "1/2-1/2"]
[WhiteElo "2238"]
[BlackElo "2343"]
[TimeControl "180+2"]
[EndTime "13:37:04 PST"]
[Termination "Game drawn by repetition"]

1. d4 {[%clk 0:03:01.9]} 1... d5 {[%clk 0:02:49]} 2. Bf4 {[%clk 0:02:56.4]} 2...
Nf6 {[%clk 0:02:49.3]} 3. e3 {[%clk 0:02:50.6]} 3... c5 {[%clk 0:02:49.4]} 4. c3
{[%clk 0:02:51.2]} 4... e6 {[%clk 0:02:48.7]} 5. Nd2 {[%clk 0:02:50.9]} 5... Nc6
{[%clk 0:02:50.1]} 6. Bd3 {[%clk 0:02:50.9]} 6... Bd6 {[%clk 0:02:51.4]} 7. Bxd6
{[%clk 0:02:51.9]} 7... Qxd6 {[%clk 0:02:51.9]} 8. f4 {[%clk 0:02:53.8]} 8...
O-O {[%clk 0:02:44.5]} 9. Ngf3 {[%clk 0:02:53.4]} 9... a6 {[%clk 0:02:42.1]} 10.
O-O {[%clk 0:02:52.9]} 10... b5 {[%clk 0:02:43.2]} 11. Ne5 {[%clk 0:02:53.2]}
11... Bb7 {[%clk 0:02:40.1]} 12. Qf3 {[%clk 0:02:50.7]} 12... Ne7 {[%clk
0:02:35.8]} 13. g4 {[%clk 0:02:50.5]} 13... Ne8 {[%clk 0:02:03.4]} 14. dxc5
{[%clk 0:02:41.8]} 14... Qc7 {[%clk 0:02:01]} 15. b4 {[%clk 0:02:39.7]} 15... f6
{[%clk 0:01:58.9]} 16. Qh3 {[%clk 0:02:40.1]} 16... g6 {[%clk 0:01:56.4]} 17.
Nef3 {[%clk 0:02:34.7]} 17... a5 {[%clk 0:01:48.6]} 18. a3 {[%clk 0:02:35.1]}
18... axb4 {[%clk 0:01:49.4]} 19. axb4 {[%clk 0:02:36.5]} 19... e5 {[%clk
0:01:47.6]} 20. Rxa8 {[%clk 0:02:34.9]} 20... Bxa8 {[%clk 0:01:48.4]} 21. fxe5
{[%clk 0:02:34.2]} 21... fxe5 {[%clk 0:01:50.3]} 22. Ng5 {[%clk 0:02:35.4]}
22... Rxf1+ {[%clk 0:01:51]} 23. Bxf1 {[%clk 0:02:31]} 23... Nf6 {[%clk
0:01:50.1]} 24. Bxb5 {[%clk 0:02:24.6]} 24... Qa7 {[%clk 0:01:49.1]} 25. Qf1
{[%clk 0:02:06.8]} 25... Kg7 {[%clk 0:01:26.2]} 26. Ne6+ {[%clk 0:02:03.8]}
26... Kf7 {[%clk 0:01:27.4]} 27. g5 {[%clk 0:01:55.2]} 27... Nf5 {[%clk
0:01:26.2]} 28. Nd8+ {[%clk 0:01:53.2]} 28... Ke7 {[%clk 0:01:26]} 29. Nc6+
{[%clk 0:01:21.5]} 29... Bxc6 {[%clk 0:01:22.4]} 30. gxf6+ {[%clk 0:01:22.3]}
30... Kd7 {[%clk 0:01:23.8]} 31. Bxc6+ {[%clk 0:01:21.8]} 31... Kxc6 {[%clk
0:01:25.7]} 32. e4 {[%clk 0:01:22.5]} 32... dxe4 {[%clk 0:01:23.5]} 33. Nxe4
{[%clk 0:01:09.3]} 33... Qa2 {[%clk 0:01:20.4]} 34. b5+ {[%clk 0:01:02.5]} 34...
Kc7 {[%clk 0:01:17.1]} 35. Qd1 {[%clk 0:00:36.5]} 35... Qc4 {[%clk 0:01:04]} 36.
b6+ {[%clk 0:00:18.2]} 36... Kc6 {[%clk 0:01:04.2]} 37. Qf3 {[%clk 0:00:19.7]}
37... Nh4 {[%clk 0:00:56.1]} 38. Qg4 {[%clk 0:00:20.8]} 38... Nf5 {[%clk
0:00:54.5]} 39. f7 {[%clk 0:00:21.3]} 39... Qxf7 {[%clk 0:00:54.7]} 40. Qf3
{[%clk 0:00:22.7]} 40... Kb5 {[%clk 0:00:50.6]} 41. Qxf5 {[%clk 0:00:22.1]}
41... Qxf5 {[%clk 0:00:47.9]} 42. Nd6+ {[%clk 0:00:23.2]} 42... Kc6 {[%clk
0:00:46.9]} 43. Nxf5 {[%clk 0:00:24.2]} 43... gxf5 {[%clk 0:00:48.8]} 44. Kf2
{[%clk 0:00:25.1]} 44... h5 {[%clk 0:00:38.8]} 45. c4 {[%clk 0:00:25.6]} 45...
h4 {[%clk 0:00:37.1]} 46. Kf3 {[%clk 0:00:26.4]} 46... Kb7 {[%clk 0:00:31]} 47.
Kg2 {[%clk 0:00:24.6]} 47... e4 {[%clk 0:00:29.7]} 48. Kh3 {[%clk 0:00:25.9]}
48... e3 {[%clk 0:00:26.7]} 49. Kg2 {[%clk 0:00:27.1]} 49... f4 {[%clk
0:00:27.6]} 50. Kf3 {[%clk 0:00:28.2]} 50... h3 {[%clk 0:00:28.2]} 51. Ke2
{[%clk 0:00:25.6]} 51... Kc6 {[%clk 0:00:29.5]} 52. Kf3 {[%clk 0:00:26.8]} 52...
Kd7 {[%clk 0:00:30.6]} 53. Ke2 {[%clk 0:00:22.8]} 53... Kc6 {[%clk 0:00:31.8]}
54. Kf3 {[%clk 0:00:24]} 54... Kb7 {[%clk 0:00:33]} 55. Ke2 {[%clk 0:00:25.7]}
55... Kc6 {[%clk 0:00:34.3]} 56. Kf3 {[%clk 0:00:27.4]} 56... Kb7 {[%clk
0:00:34.8]} 57. Ke2 {[%clk 0:00:28.8]} 57... Kc6 {[%clk 0:00:36.3]} 58. Kf3
{[%clk 0:00:29.9]} 58... Kb7 {[%clk 0:00:37.7]} 1/2-1/2

[Event "*** Titled Tuesday Blitz"]
[Site "Chess.com"]
[Date "2019.02.05"]
[Round "3"]
[White "KRASAVCHIK2002"]
[Black "x-5963514717"]
[Result "0-1"]
[WhiteElo "2254"]
[BlackElo "2457"]
[TimeControl "180+2"]
[EndTime "13:37:05 PST"]
[Termination "x-5963514717 won by resignation"]

1. e4 {[%clk 0:02:59.7]} 1... e5 {[%clk 0:03:00.3]} 2. Nf3 {[%clk 0:03:00.3]}
2... Nc6 {[%clk 0:02:59.8]} 3. Bb5 {[%clk 0:03:01.3]} 3... a6 {[%clk 0:03:00]}
4. Ba4 {[%clk 0:03:01.5]} 4... Nge7 {[%clk 0:03:00.6]} 5. c3 {[%clk 0:02:59.8]}
5... g6 {[%clk 0:03:01]} 6. d4 {[%clk 0:02:59.9]} 6... exd4 {[%clk 0:03:02.9]}
7. cxd4 {[%clk 0:03:00.5]} 7... b5 {[%clk 0:03:04.1]} 8. Bb3 {[%clk 0:03:01.5]}
8... Bg7 {[%clk 0:03:00.7]} 9. O-O {[%clk 0:03:00.6]} 9... O-O {[%clk
0:03:00.8]} 10. Nc3 {[%clk 0:03:00.8]} 10... d6 {[%clk 0:02:57.8]} 11. h3 {[%clk
0:03:01.6]} 11... Bb7 {[%clk 0:02:55.7]} 12. Re1 {[%clk 0:02:58]} 12... Na5
{[%clk 0:02:56.1]} 13. Bc2 {[%clk 0:02:58.9]} 13... Qd7 {[%clk 0:02:56.7]} 14.
Bf4 {[%clk 0:02:52.9]} 14... Rad8 {[%clk 0:02:55.7]} 15. Qc1 {[%clk 0:02:46.3]}
15... Rfe8 {[%clk 0:02:52.9]} 16. b3 {[%clk 0:02:00.8]} 16... c5 {[%clk
0:02:48.4]} 17. Qd2 {[%clk 0:01:59.5]} 17... cxd4 {[%clk 0:02:44.6]} 18. Nxd4
{[%clk 0:01:59.4]} 18... Nac6 {[%clk 0:02:42.1]} 19. Be3 {[%clk 0:01:37.2]}
19... d5 {[%clk 0:02:34.7]} 20. e5 {[%clk 0:01:16]} 20... Nxe5 {[%clk
0:02:33.2]} 21. Bh6 {[%clk 0:01:13]} 21... N7c6 {[%clk 0:02:19]} 22. Bxg7 {[%clk
0:01:12.4]} 22... Kxg7 {[%clk 0:02:20.9]} 23. f4 {[%clk 0:01:05.2]} 23... Nc4
{[%clk 0:02:00.1]} 24. bxc4 {[%clk 0:01:01.8]} 24... dxc4 {[%clk 0:02:02]} 25.
Rxe8 {[%clk 0:00:51.9]} 25... Qxe8 {[%clk 0:01:48.9]} 26. Nce2 {[%clk
0:00:52.1]} 26... Qd7 {[%clk 0:01:42.8]} 27. Rd1 {[%clk 0:00:36.6]} 27... Qc7
{[%clk 0:01:28.6]} 28. Qc3 {[%clk 0:00:27.7]} 28... Kg8 {[%clk 0:01:22.7]} 29.
f5 {[%clk 0:00:28.2]} 29... Nxd4 {[%clk 0:01:12.3]} 30. Rxd4 {[%clk 0:00:26.6]}
30... Re8 {[%clk 0:01:12.1]} 31. Ng3 {[%clk 0:00:18.2]} 31... b4 {[%clk
0:01:10.6]} 32. Qxc4 {[%clk 0:00:18.3]} 32... Qxg3 {[%clk 0:01:09.8]} 33. Be4
{[%clk 0:00:10.6]} 33... Qe1+ {[%clk 0:01:10.5]} 34. Kh2 {[%clk 0:00:11.3]}
34... Bxe4 {[%clk 0:01:08.3]} 35. fxg6 {[%clk 0:00:08.4]} 35... Bxg6 {[%clk
0:01:08]} 36. Qxb4 {[%clk 0:00:07.6]} 36... Qe5+ {[%clk 0:01:08.6]} 37. Rf4
{[%clk 0:00:07.9]} 37... a5 {[%clk 0:01:07.6]} 38. Qc4 {[%clk 0:00:08.5]} 38...
Rb8 {[%clk 0:01:04.5]} 39. Kg1 {[%clk 0:00:05.1]} 39... Rb1+ {[%clk 0:01:05.4]}
40. Kf2 {[%clk 0:00:04.3]} 40... Rb4 {[%clk 0:00:59.6]} 41. Qc8+ {[%clk
0:00:04.2]} 41... Kg7 {[%clk 0:01:00.6]} 42. Rxb4 {[%clk 0:00:05.2]} 42... axb4
{[%clk 0:01:01.7]} 43. Qc4 {[%clk 0:00:06.9]} 43... Qc3 {[%clk 0:00:59.7]} 44.
Qd5 {[%clk 0:00:04.9]} 44... Qb2+ {[%clk 0:00:55.8]} 45. Kg1 {[%clk 0:00:05.7]}
45... h5 {[%clk 0:00:53.5]} 46. g4 {[%clk 0:00:06.1]} 46... hxg4 {[%clk
0:00:52.7]} 47. hxg4 {[%clk 0:00:08]} 47... Qc3 {[%clk 0:00:51.3]} 48. Kh2
{[%clk 0:00:06.4]} 48... Qc2+ {[%clk 0:00:48.8]} 49. Kg1 {[%clk 0:00:05.4]}
49... Qe4 {[%clk 0:00:49.5]} 50. Qd1 {[%clk 0:00:04.3]} 50... Qe3+ {[%clk
0:00:49]} 51. Kg2 {[%clk 0:00:04.9]} 51... Be4+ {[%clk 0:00:49.9]} 52. Kf1
{[%clk 0:00:04.9]} 52... Qd3+ {[%clk 0:00:42.4]} 53. Qxd3 {[%clk 0:00:05.2]}
53... Bxd3+ {[%clk 0:00:44.3]} 0-1

[Event "*** Titled Tuesday Blitz"]
[Site "Chess.com"]
[Date "2019.02.05"]
[Round "3"]
[White "Sanan_Sjugirov"]
[Black "DrMelekess"]
[Result "1-0"]
[WhiteElo "2843"]
[BlackElo "2613"]
[TimeControl "180+2"]
[EndTime "13:37:06 PST"]
[Termination "Sanan_Sjugirov won on time"]

1. d4 {[%clk 0:03:01.9]} 1... Nc6 {[%clk 0:02:56.7]} 2. d5 {[%clk 0:02:56.4]}
2... Ne5 {[%clk 0:02:56.3]} 3. Nf3 {[%clk 0:02:55.2]} 3... Nxf3+ {[%clk
0:02:49.9]} 4. exf3 {[%clk 0:02:56.2]} 4... e5 {[%clk 0:02:51.2]} 5. c4 {[%clk
0:02:48.4]} 5... Nf6 {[%clk 0:02:50]} 6. Bd3 {[%clk 0:02:48.4]} 6... Bb4+ {[%clk
0:02:48.1]} 7. Bd2 {[%clk 0:02:42.4]} 7... Bxd2+ {[%clk 0:02:48]} 8. Qxd2 {[%clk
0:02:44.3]} 8... O-O {[%clk 0:02:49.1]} 9. Nc3 {[%clk 0:02:45.2]} 9... d6 {[%clk
0:02:41.6]} 10. h4 {[%clk 0:02:43.8]} 10... c6 {[%clk 0:02:39.1]} 11. h5 {[%clk
0:02:39.9]} 11... cxd5 {[%clk 0:02:38.4]} 12. cxd5 {[%clk 0:02:40.7]} 12... Nd7
{[%clk 0:02:15.2]} 13. h6 {[%clk 0:02:07.6]} 13... g6 {[%clk 0:02:14.5]} 14. Be2
{[%clk 0:01:58.4]} 14... a6 {[%clk 0:01:38.6]} 15. Rc1 {[%clk 0:01:58.4]} 15...
b5 {[%clk 0:01:18.1]} 16. Ne4 {[%clk 0:01:52]} 16... Nf6 {[%clk 0:01:18.4]} 17.
O-O {[%clk 0:01:14.8]} 17... Nxe4 {[%clk 0:00:44.7]} 18. fxe4 {[%clk 0:01:16.7]}
18... Bd7 {[%clk 0:00:41.8]} 19. Qe3 {[%clk 0:01:14]} 19... Re8 {[%clk
0:00:16.7]} 20. Rc3 {[%clk 0:01:07.8]} 20... f5 {[%clk 0:00:13.4]} 21. exf5
{[%clk 0:01:06.4]} 21... Bxf5 {[%clk 0:00:12.9]} 22. Rfc1 {[%clk 0:01:06.3]}
22... Qf6 {[%clk 0:00:09.7]} 23. Rc6 {[%clk 0:00:52.6]} 23... Bd7 {[%clk
0:00:09.1]} 24. Rc7 {[%clk 0:00:53.9]} 24... Re7 {[%clk 0:00:10.1]} 25. Rb7
{[%clk 0:00:40.6]} 25... Bf5 {[%clk 0:00:10.5]} 26. Rb6 {[%clk 0:00:38.1]} 26...
e4 {[%clk 0:00:09.9]} 27. Qc3 {[%clk 0:00:29]} 27... Qg5 {[%clk 0:00:08.2]} 28.
Rxd6 {[%clk 0:00:23]} 28... Qxh6 {[%clk 0:00:05.4]} 29. Rc6 {[%clk 0:00:16.6]}
29... Rd8 {[%clk 0:00:06.2]} 30. d6 {[%clk 0:00:17.5]} 30... Red7 {[%clk
0:00:07.5]} 31. Qe5 {[%clk 0:00:14.5]} 31... Qg7 {[%clk 0:00:08.3]} 32. Qd5+
{[%clk 0:00:14.1]} 32... Qf7 {[%clk 0:00:09.5]} 33. Qc5 {[%clk 0:00:13.9]} 33...
Qf6 {[%clk 0:00:07.4]} 34. Rd1 {[%clk 0:00:13.3]} 34... Qxb2 {[%clk 0:00:07.1]}
35. Bf1 {[%clk 0:00:12.6]} 35... Kg7 {[%clk 0:00:07.6]} 36. a4 {[%clk 0:00:13]}
36... bxa4 {[%clk 0:00:07.8]} 37. Rc7 {[%clk 0:00:13.8]} 37... a3 {[%clk
0:00:08.7]} 38. Bc4 {[%clk 0:00:05.4]} 38... a2 {[%clk 0:00:04.1]} 39. Rxd7+
{[%clk 0:00:06.6]} 39... Rxd7 {[%clk 0:00:04.9]} 40. Bxa2 {[%clk 0:00:05.8]}
40... Qa3 {[%clk 0:00:05.5]} 41. Qe5+ {[%clk 0:00:07]} 1-0

[Event "*** Titled Tuesday Blitz"]
[Site "Chess.com"]
[Date "2019.02.05"]
[Round "3"]
[White "ChessMavenYeti"]
[Black "ruvat"]
[Result "1-0"]
[WhiteElo "2249"]
[BlackElo "2289"]
[TimeControl "180+2"]
[EndTime "13:37:08 PST"]
[Termination "ChessMavenYeti won by resignation"]

1. d4 {[%clk 0:03:01.9]} 1... d6 {[%clk 0:03:00.3]} 2. c4 {[%clk 0:02:59.8]}
2... e5 {[%clk 0:03:01.1]} 3. Nf3 {[%clk 0:02:54.2]} 3... e4 {[%clk 0:03:01.6]}
4. Ng5 {[%clk 0:02:53.5]} 4... Nf6 {[%clk 0:03:02.4]} 5. h4 {[%clk 0:02:54.1]}
5... h6 {[%clk 0:02:59]} 6. Nh3 {[%clk 0:02:54.1]} 6... g6 {[%clk 0:02:59.5]} 7.
Nc3 {[%clk 0:02:52.1]} 7... Bg7 {[%clk 0:02:58.8]} 8. Qc2 {[%clk 0:02:51.5]}
8... Qe7 {[%clk 0:02:57.6]} 9. e3 {[%clk 0:02:52.5]} 9... c6 {[%clk 0:02:54.5]}
10. Nf4 {[%clk 0:02:53]} 10... O-O {[%clk 0:02:50.7]} 11. Be2 {[%clk 0:02:50.4]}
11... h5 {[%clk 0:02:47.5]} 12. Bd2 {[%clk 0:02:49.8]} 12... Bf5 {[%clk
0:02:47.3]} 13. O-O-O {[%clk 0:02:49.2]} 13... Na6 {[%clk 0:02:48.4]} 14. Rdg1
{[%clk 0:02:42.8]} 14... Nc7 {[%clk 0:02:41]} 15. g4 {[%clk 0:02:36.9]} 15...
Nxg4 {[%clk 0:02:24.9]} 16. Bxg4 {[%clk 0:02:31.4]} 16... Bxg4 {[%clk
0:02:25.2]} 17. Rxg4 {[%clk 0:02:21.3]} 17... hxg4 {[%clk 0:02:27.1]} 18. Nxe4
{[%clk 0:02:19.6]} 18... d5 {[%clk 0:02:18.7]} 19. Ng5 {[%clk 0:02:13.7]} 19...
Bf6 {[%clk 0:02:07.2]} 20. Qb3 {[%clk 0:01:31.2]} 20... Rfd8 {[%clk 0:01:34.4]}
21. Bb4 {[%clk 0:01:23.2]} 21... Qd7 {[%clk 0:01:25]} 22. Qd3 {[%clk 0:01:12.4]}
22... Kg7 {[%clk 0:01:21.1]} 23. f3 {[%clk 0:00:45.2]} 23... Bxg5 {[%clk
0:01:10.1]} 24. hxg5 {[%clk 0:00:45.2]} 24... Rh8 {[%clk 0:01:10.6]} 25. Rf1
{[%clk 0:00:38.6]} 25... Qf5 {[%clk 0:00:58.3]} 26. Qb3 {[%clk 0:00:31.4]} 26...
gxf3 {[%clk 0:00:49.9]} 27. Bd6 {[%clk 0:00:31.4]} 27... Ne8 {[%clk 0:00:19.3]}
28. Be5+ {[%clk 0:00:30.9]} 28... f6 {[%clk 0:00:20.6]} 29. gxf6+ {[%clk
0:00:29.1]} 29... Nxf6 {[%clk 0:00:20.2]} 30. Qxb7+ {[%clk 0:00:30.3]} 30... Kh6
{[%clk 0:00:18.5]} 31. Qe7 {[%clk 0:00:15.7]} 31... Rhf8 {[%clk 0:00:13.6]} 32.
Rh1+ {[%clk 0:00:16.2]} 32... Kg5 {[%clk 0:00:14.8]} 33. Ne6+ {[%clk 0:00:16.7]}
33... Kg4 {[%clk 0:00:14.9]} 34. Nxf8 {[%clk 0:00:17.5]} 34... f2 {[%clk
0:00:16]} 35. Rf1 {[%clk 0:00:16.6]} 35... Kf3 {[%clk 0:00:17.1]} 36. Qxf6
{[%clk 0:00:16.5]} 36... Qxf6 {[%clk 0:00:17.3]} 37. Bxf6 {[%clk 0:00:18]} 37...
Ke2 {[%clk 0:00:17.6]} 38. Rxf2+ {[%clk 0:00:18.6]} 38... Kxf2 {[%clk
0:00:18.3]} 39. Nd7 {[%clk 0:00:20.1]} 39... dxc4 {[%clk 0:00:18.4]} 40. e4
{[%clk 0:00:19.3]} 40... Re8 {[%clk 0:00:14.3]} 41. e5 {[%clk 0:00:20]} 41...
Kf3 {[%clk 0:00:14.3]} 42. Kd2 {[%clk 0:00:20.5]} 42... Ke4 {[%clk 0:00:15.1]}
43. Kc3 {[%clk 0:00:21.3]} 43... Kd5 {[%clk 0:00:15.8]} 44. Nc5 {[%clk
0:00:21.3]} 44... Rg8 {[%clk 0:00:13.2]} 45. e6 {[%clk 0:00:21.6]} 45... g5
{[%clk 0:00:11.8]} 46. e7 {[%clk 0:00:21.6]} 46... g4 {[%clk 0:00:12.8]} 47. Bh4
{[%clk 0:00:22.7]} 47... Kd6 {[%clk 0:00:12.6]} 48. Nb7+ {[%clk 0:00:22.6]}
48... Kd7 {[%clk 0:00:12.8]} 49. Nc5+ {[%clk 0:00:23.3]} 49... Ke8 {[%clk
0:00:13.1]} 50. Ne4 {[%clk 0:00:24.9]} 50... Kf7 {[%clk 0:00:10.6]} 51. Kxc4
{[%clk 0:00:24.4]} 51... g3 {[%clk 0:00:09.6]} 52. Nd6+ {[%clk 0:00:22.6]} 52...
Ke6 {[%clk 0:00:06.8]} 53. e8=Q+ {[%clk 0:00:23.8]} 53... Rxe8 {[%clk
0:00:07.1]} 54. Nxe8 {[%clk 0:00:25.7]} 1-0